[Event "Live Chess"]
[Site "Chess.com"]
[Date "2024.06.01"]
[Round "-"]
[White "jk0110"]
[Black "gobbles19"]
[Result "0-1"]
[WhiteElo "1230"]
[BlackElo "2288"]
[TimeControl "300"]
[EndTime "15:48:37 PDT"]
[Termination "gobbles19 won by resignation"]

1. e4 {[%clk 0:04:56.2]} 1... d6 {[%clk 0:04:58.7]} 2. d4 {[%clk 0:04:51.9]}
2... Nf6 {[%clk 0:04:58.2]} 3. Nc3 {[%clk 0:04:48.6]} 3... g6 {[%clk 0:04:57.7]}
4. Nf3 {[%clk 0:04:46.6]} 4... Bg7 {[%clk 0:04:57.3]} 5. Bg5 {[%clk 0:04:44.3]}
5... h6 {[%clk 0:04:56]} 6. Bh4 {[%clk 0:04:40.6]} 6... O-O {[%clk 0:04:54.8]}
7. Bd3 {[%clk 0:04:35.5]} 7... Na6 {[%clk 0:04:49.6]} 8. Qd2 {[%clk 0:04:29.4]}
8... c5 {[%clk 0:04:47.8]} 9. O-O-O {[%clk 0:04:18.4]} 9... cxd4 {[%clk
0:04:45.8]} 10. Nxd4 {[%clk 0:04:17.2]} 10... Nc5 {[%clk 0:04:44.5]} 11. Bc4
{[%clk 0:04:11.6]} 11... Nfxe4 {[%clk 0:04:37.7]} 12. Nxe4 {[%clk 0:04:05.2]}
12... Nxe4 {[%clk 0:04:37.6]} 13. Qd3 {[%clk 0:04:03.6]} 13... d5 {[%clk
0:04:30]} 14. Bb3 {[%clk 0:03:51.3]} 14... Nc5 {[%clk 0:04:28.9]} 15. Qf3 {[%clk
0:03:38]} 15... Nxb3+ {[%clk 0:04:26.2]} 16. Qxb3 {[%clk 0:03:37.9]} 16... g5
{[%clk 0:04:13.9]} 17. Bg3 {[%clk 0:03:32.7]} 17... e5 {[%clk 0:04:08.4]} 18.
Nf3 {[%clk 0:03:21]} 18... g4 {[%clk 0:03:50.5]} 19. Nxe5 {[%clk 0:03:15.6]}
19... Bxe5 {[%clk 0:03:48.8]} 20. Bxe5 {[%clk 0:03:13.1]} 20... Qg5+ {[%clk
0:03:47.6]} 21. Kb1 {[%clk 0:03:03.2]} 21... Qxe5 {[%clk 0:03:46.7]} 22. h3
{[%clk 0:02:58.5]} 22... Bf5 {[%clk 0:03:39]} 23. hxg4 {[%clk 0:02:53.5]} 23...
Bg6 {[%clk 0:03:27]} 24. Rxd5 {[%clk 0:02:29.6]} 24... Qf6 {[%clk 0:03:13.5]}
25. Qe3 {[%clk 0:01:48.6]} 25... Rac8 {[%clk 0:02:50.4]} 26. Rxh6 {[%clk
0:01:35]} 26... Bxc2+ {[%clk 0:02:39.8]} 27. Ka1 {[%clk 0:01:27.8]} 27... Bg6
{[%clk 0:02:37.8]} 28. g5 {[%clk 0:01:02.2]} 28... Qxf2 {[%clk 0:02:30.6]} 29.
Rh8+ {[%clk 0:00:35.6]} 29... Kxh8 {[%clk 0:02:25.2]} 30. Qh3+ {[%clk
0:00:30.7]} 30... Kg8 {[%clk 0:02:23.1]} 31. Qh1 {[%clk 0:00:28]} 31... Qxg2
{[%clk 0:02:16.4]} 32. Qd1 {[%clk 0:00:22.2]} 32... Qxd5 {[%clk 0:02:14.5]} 0-1

[Event "Live Chess"]
[Site "Chess.com"]
[Date "2024.06.01"]
[Round "-"]
[White "MellowAesthetic"]
[Black "defenderalist"]
[Result "1-0"]
[WhiteElo "2083"]
[BlackElo "1530"]
[TimeControl "300"]
[EndTime "15:48:46 PDT"]
[Termination "MellowAesthetic won on time"]

1. e4 {[%clk 0:04:58.8]} 1... c5 {[%clk 0:04:56.1]} 2. Nf3 {[%clk 0:04:57.3]}
2... d6 {[%clk 0:04:52.8]} 3. d4 {[%clk 0:04:56.5]} 3... cxd4 {[%clk 0:04:51.6]}
4. Nxd4 {[%clk 0:04:56.4]} 4... a6 {[%clk 0:04:49.1]} 5. c4 {[%clk 0:04:55.1]}
5... Nf6 {[%clk 0:04:47.2]} 6. Nc3 {[%clk 0:04:54.3]} 6... Nc6 {[%clk
0:04:44.5]} 7. Bg5 {[%clk 0:04:52.7]} 7... e6 {[%clk 0:04:36.8]} 8. Nxc6 {[%clk
0:04:45.1]} 8... bxc6 {[%clk 0:04:35.2]} 9. Qd2 {[%clk 0:04:38.7]} 9... Be7
{[%clk 0:04:31.9]} 10. Be2 {[%clk 0:04:34.4]} 10... h6 {[%clk 0:04:28.1]} 11.
Be3 {[%clk 0:04:20.6]} 11... Bb7 {[%clk 0:04:21.3]} 12. O-O {[%clk 0:04:16.7]}
12... c5 {[%clk 0:04:20.1]} 13. f3 {[%clk 0:04:14.6]} 13... O-O {[%clk
0:03:59.1]} 14. Rad1 {[%clk 0:04:09.1]} 14... Qc7 {[%clk 0:03:48.1]} 15. Qc2
{[%clk 0:03:52.7]} 15... d5 {[%clk 0:03:37.2]} 16. cxd5 {[%clk 0:03:49.1]} 16...
exd5 {[%clk 0:03:36]} 17. exd5 {[%clk 0:03:46.3]} 17... Bd6 {[%clk 0:03:29.9]}
18. f4 {[%clk 0:03:41.6]} 18... Rad8 {[%clk 0:03:22.6]} 19. g3 {[%clk
0:03:23.4]} 19... Rfe8 {[%clk 0:03:18.8]} 20. Bf2 {[%clk 0:03:22.4]} 20... Bf8
{[%clk 0:03:00.2]} 21. Bf3 {[%clk 0:03:20.9]} 21... c4 {[%clk 0:02:38.8]} 22.
Rd2 {[%clk 0:02:45]} 22... Bc5 {[%clk 0:02:36.2]} 23. Rfd1 {[%clk 0:02:44.1]}
23... Bxf2+ {[%clk 0:02:34.2]} 24. Kxf2 {[%clk 0:02:44]} 24... Qc5+ {[%clk
0:02:27.2]} 25. Kg2 {[%clk 0:02:43.2]} 25... Rd6 {[%clk 0:02:17.1]} 26. Rd4
{[%clk 0:02:33.5]} 26... Red8 {[%clk 0:02:15.4]} 27. Qd2 {[%clk 0:02:29.2]}
27... Bc8 {[%clk 0:01:59.8]} 28. Qe2 {[%clk 0:02:16]} 28... Bf5 {[%clk 0:01:47]}
29. Rxc4 {[%clk 0:02:10.3]} 29... Qa5 {[%clk 0:01:19.4]} 30. Rcd4 {[%clk
0:02:03.4]} 30... Rb8 {[%clk 0:01:07.3]} 31. Qd2 {[%clk 0:01:51.9]} 31... Qb6
{[%clk 0:00:45.9]} 32. b3 {[%clk 0:01:49.3]} 32... Ng4 {[%clk 0:00:32.7]} 33.
Ne4 {[%clk 0:01:10.4]} 33... Bxe4 {[%clk 0:00:27.1]} 34. Bxe4 {[%clk 0:01:09.4]}
34... Re8 {[%clk 0:00:22.4]} 35. h3 {[%clk 0:00:57.7]} 35... f5 {[%clk
0:00:17.5]} 36. hxg4 {[%clk 0:00:53.1]} 36... fxe4 {[%clk 0:00:16.6]} 37. Qe3
{[%clk 0:00:44.5]} 37... Qb5 {[%clk 0:00:09.4]} 38. Rxe4 {[%clk 0:00:38.4]}
38... Red8 {[%clk 0:00:06.3]} 39. Qd3 {[%clk 0:00:26.7]} 39... Qd7 {[%clk
0:00:03.3]} 40. Rd4 {[%clk 0:00:14.3]} 40... Qxg4 {[%clk 0:00:02.5]} 41. Qf3
{[%clk 0:00:13.9]} 41... Qd7 {[%clk 0:00:00.8]} 42. R4d2 {[%clk 0:00:11.9]} 1-0

[Event "Live Chess"]
[Site "Chess.com"]
[Date "2024.06.01"]
[Round "-"]
[White "updatedopenings2024"]
[Black "RichardABates"]
[Result "0-1"]
[WhiteElo "1990"]
[BlackElo "2314"]
[TimeControl "300"]
[EndTime "15:48:56 PDT"]
[Termination "RichardABates won by resignation"]

1. e4 {[%clk 0:04:58.2]} 1... c5 {[%clk 0:04:58.3]} 2. Nf3 {[%clk 0:04:57.4]}
2... d6 {[%clk 0:04:57.2]} 3. Bb5+ {[%clk 0:04:56.8]} 3... Nd7 {[%clk
0:04:55.8]} 4. O-O {[%clk 0:04:55.9]} 4... Nf6 {[%clk 0:04:53.4]} 5. Re1 {[%clk
0:04:54.9]} 5... a6 {[%clk 0:04:51.5]} 6. Bf1 {[%clk 0:04:53.9]} 6... e5 {[%clk
0:04:49.1]} 7. c3 {[%clk 0:04:53.3]} 7... Be7 {[%clk 0:04:45.8]} 8. d4 {[%clk
0:04:53.2]} 8... O-O {[%clk 0:04:44]} 9. h3 {[%clk 0:04:52.4]} 9... Qc7 {[%clk
0:04:41.9]} 10. Na3 {[%clk 0:04:51.2]} 10... b5 {[%clk 0:04:39.9]} 11. Nc2
{[%clk 0:04:46.3]} 11... Bb7 {[%clk 0:04:36.7]} 12. d5 {[%clk 0:04:43.8]} 12...
c4 {[%clk 0:04:35.5]} 13. a4 {[%clk 0:04:42.8]} 13... Nc5 {[%clk 0:04:33.9]} 14.
Nd2 {[%clk 0:04:36.4]} 14... Nxa4 {[%clk 0:04:31.2]} 15. f4 {[%clk 0:04:27.3]}
15... exf4 {[%clk 0:04:26.1]} 16. Nf3 {[%clk 0:04:25.9]} 16... Nc5 {[%clk
0:04:22.4]} 17. e5 {[%clk 0:04:25]} 17... dxe5 {[%clk 0:04:20.2]} 18. Nxe5
{[%clk 0:04:24.9]} 18... Bd6 {[%clk 0:04:18.1]} 19. Ng4 {[%clk 0:04:11.1]} 19...
Nxd5 {[%clk 0:04:09.9]} 20. Nd4 {[%clk 0:04:08.7]} 20... Rfe8 {[%clk 0:04:01.7]}
21. Nf5 {[%clk 0:04:06.7]} 21... Bf8 {[%clk 0:03:58.5]} 22. Rxe8 {[%clk
0:04:00.5]} 22... Rxe8 {[%clk 0:03:56.8]} 23. Be2 {[%clk 0:03:58.7]} 23... h5
{[%clk 0:03:46.3]} 24. Nf2 {[%clk 0:03:54.1]} 24... Ne3 {[%clk 0:03:44.3]} 25.
Nxe3 {[%clk 0:03:49.4]} 25... fxe3 {[%clk 0:03:42.7]} 26. Bxh5 {[%clk
0:03:47.7]} 26... Qg3 {[%clk 0:03:31.9]} 0-1

[Event "Live Chess"]
[Site "Chess.com"]
[Date "2024.06.01"]
[Round "-"]
[White "upoe610"]
[Black "koekoekoe"]
[Result "1-0"]
[WhiteElo "2209"]
[BlackElo "1959"]
[TimeControl "300"]
[EndTime "15:49:16 PDT"]
[Termination "upoe610 won by resignation"]

1. c4 {[%clk 0:04:57.6]} 1... d5 {[%clk 0:04:59.9]} 2. cxd5 {[%clk 0:04:56.3]}
2... Qxd5 {[%clk 0:04:59.8]} 3. Nf3 {[%clk 0:04:56]} 3... Nf6 {[%clk 0:04:58.7]}
4. d4 {[%clk 0:04:55.5]} 4... Bg4 {[%clk 0:04:57.7]} 5. Nc3 {[%clk 0:04:55.1]}
5... Qa5 {[%clk 0:04:56.3]} 6. Qa4+ {[%clk 0:04:48.1]} 6... Qxa4 {[%clk
0:04:53.7]} 7. Nxa4 {[%clk 0:04:48]} 7... e6 {[%clk 0:04:51.3]} 8. Nc3 {[%clk
0:04:42]} 8... Bb4 {[%clk 0:04:49.5]} 9. Bd2 {[%clk 0:04:41]} 9... O-O {[%clk
0:04:44.9]} 10. e3 {[%clk 0:04:39.9]} 10... Nc6 {[%clk 0:04:40.4]} 11. h3 {[%clk
0:04:38.7]} 11... Bxf3 {[%clk 0:04:38.9]} 12. gxf3 {[%clk 0:04:38.6]} 12... Ne7
{[%clk 0:04:33.5]} 13. Bd3 {[%clk 0:04:35.1]} 13... Nfd5 {[%clk 0:04:26.8]} 14.
a3 {[%clk 0:04:33.3]} 14... Bxc3 {[%clk 0:04:22.4]} 15. bxc3 {[%clk 0:04:32]}
15... h6 {[%clk 0:04:14.8]} 16. e4 {[%clk 0:04:30.8]} 16... Nb6 {[%clk 0:04:11]}
17. Rg1 {[%clk 0:04:30.3]} 17... Kh8 {[%clk 0:04:08.7]} 18. Ke2 {[%clk
0:04:29.1]} 18... Rac8 {[%clk 0:04:01.1]} 19. a4 {[%clk 0:04:28]} 19... c5
{[%clk 0:04:00]} 20. a5 {[%clk 0:04:26.9]} 20... Nd7 {[%clk 0:03:59.2]} 21. Rab1
{[%clk 0:04:24.3]} 21... cxd4 {[%clk 0:03:48.9]} 22. cxd4 {[%clk 0:04:22.8]}
22... b6 {[%clk 0:03:48.4]} 23. a6 {[%clk 0:04:18.9]} 23... Nc6 {[%clk
0:03:43.9]} 24. Be3 {[%clk 0:04:16.5]} 24... Rfd8 {[%clk 0:03:42.1]} 25. Rgd1
{[%clk 0:03:57.8]} 25... Nf6 {[%clk 0:03:36.7]} 26. Bb5 {[%clk 0:03:55.7]} 26...
Ne7 {[%clk 0:03:30.3]} 27. Kf1 {[%clk 0:03:54.5]} 27... Ng6 {[%clk 0:03:12.7]}
28. Rbc1 {[%clk 0:03:50.3]} 28... Nh4 {[%clk 0:03:10.8]} 29. Rxc8 {[%clk
0:03:33.3]} 29... Rxc8 {[%clk 0:03:10.7]} 30. d5 {[%clk 0:03:32.5]} 30... Nxf3
{[%clk 0:02:56.2]} 31. d6 {[%clk 0:03:30.6]} 31... Nxe4 {[%clk 0:02:50]} 32. d7
{[%clk 0:03:28]} 32... Rd8 {[%clk 0:02:48.8]} 33. Bxb6 {[%clk 0:03:25.4]} 33...
axb6 {[%clk 0:02:41.8]} 34. a7 {[%clk 0:03:25.3]} 34... Nfd2+ {[%clk 0:02:32.8]}
35. Kg2 {[%clk 0:03:17.5]} 35... Kh7 {[%clk 0:02:02]} 36. Bc6 {[%clk 0:03:15.9]}
36... Nc4 {[%clk 0:01:40.9]} 37. Bxe4+ {[%clk 0:03:12.3]} 1-0

[Event "Live Chess"]
[Site "Chess.com"]
[Date "2024.06.01"]
[Round "-"]
[White "lyricalschemes"]
[Black "CarmelJane"]
[Result "0-1"]
[WhiteElo "2376"]
[BlackElo "2088"]
[TimeControl "300"]
[EndTime "15:49:20 PDT"]
[Termination "CarmelJane won by resignation"]

1. e4 {[%clk 0:04:57.6]} 1... g6 {[%clk 0:04:59.1]} 2. d4 {[%clk 0:04:51.9]}
2... Bg7 {[%clk 0:04:58.5]} 3. Nc3 {[%clk 0:04:51]} 3... c5 {[%clk 0:04:57.6]}
4. Be3 {[%clk 0:04:50.1]} 4... cxd4 {[%clk 0:04:50.8]} 5. Bxd4 {[%clk
0:04:39.9]} 5... Bxd4 {[%clk 0:04:39.1]} 6. Qxd4 {[%clk 0:04:39.7]} 6... Nf6
{[%clk 0:04:38.3]} 7. Nf3 {[%clk 0:04:37.3]} 7... Nc6 {[%clk 0:04:37.7]} 8. Qd2
{[%clk 0:04:35.7]} 8... O-O {[%clk 0:04:31.8]} 9. Bc4 {[%clk 0:04:34.9]} 9... a6
{[%clk 0:04:24.3]} 10. a4 {[%clk 0:04:31.5]} 10... d6 {[%clk 0:04:22.6]} 11. O-O
{[%clk 0:04:09.6]} 11... Bg4 {[%clk 0:04:21.7]} 12. Nd4 {[%clk 0:04:01.4]} 12...
Ne5 {[%clk 0:04:07.9]} 13. Be2 {[%clk 0:03:59.1]} 13... Bd7 {[%clk 0:04:05.5]}
14. f4 {[%clk 0:03:56.3]} 14... Nc6 {[%clk 0:04:02.9]} 15. f5 {[%clk 0:03:52.9]}
15... Qb6 {[%clk 0:03:59.8]} 0-1

[Event "Live Chess"]
[Site "Chess.com"]
[Date "2024.06.01"]
[Round "-"]
[White "NottheBishopSacrifice"]
[Black "Crowded_House"]
[Result "1-0"]
[WhiteElo "2298"]
[BlackElo "1728"]
[TimeControl "300"]
[EndTime "15:49:35 PDT"]
[Termination "NottheBishopSacrifice won by resignation"]

1. d4 {[%clk 0:04:58.3]} 1... e6 {[%clk 0:04:57.7]} 2. Nf3 {[%clk 0:04:57]} 2...
d5 {[%clk 0:04:55.7]} 3. Bg5 {[%clk 0:04:56.2]} 3... Be7 {[%clk 0:04:52.8]} 4.
Bxe7 {[%clk 0:04:55.2]} 4... Qxe7 {[%clk 0:04:50.6]} 5. g3 {[%clk 0:04:54.4]}
5... Nf6 {[%clk 0:04:48.9]} 6. Bg2 {[%clk 0:04:52.2]} 6... O-O {[%clk
0:04:46.1]} 7. O-O {[%clk 0:04:51]} 7... c5 {[%clk 0:04:40.4]} 8. dxc5 {[%clk
0:04:49.5]} 8... Qxc5 {[%clk 0:04:38.5]} 9. Nbd2 {[%clk 0:04:49.1]} 9... Nc6
{[%clk 0:04:33]} 10. Nb3 {[%clk 0:04:47.1]} 10... Qb6 {[%clk 0:04:26.9]} 11. Qd3
{[%clk 0:04:43.6]} 11... Bd7 {[%clk 0:04:21.2]} 12. c4 {[%clk 0:04:39.6]} 12...
dxc4 {[%clk 0:04:12.2]} 13. Qxc4 {[%clk 0:04:38.1]} 13... Rac8 {[%clk
0:04:01.5]} 14. Qc5 {[%clk 0:04:36]} 14... Qxc5 {[%clk 0:03:57]} 15. Nxc5 {[%clk
0:04:34.2]} 15... b6 {[%clk 0:03:54.6]} 16. Nxd7 {[%clk 0:04:33]} 16... Nxd7
{[%clk 0:03:53]} 17. Rfd1 {[%clk 0:04:31.6]} 17... Nf6 {[%clk 0:03:49.3]} 18. a3
{[%clk 0:04:28.6]} 18... Ne7 {[%clk 0:03:41]} 19. Ne5 {[%clk 0:04:26.1]} 19...
Rfd8 {[%clk 0:03:33.2]} 20. b4 {[%clk 0:04:22]} 20... Ned5 {[%clk 0:03:24]} 21.
Bxd5 {[%clk 0:04:19.9]} 21... Nxd5 {[%clk 0:03:22.3]} 22. b5 {[%clk 0:04:14.9]}
22... Rc2 {[%clk 0:03:16.5]} 23. Nc6 {[%clk 0:04:12.3]} 23... Ra8 {[%clk
0:03:09.3]} 24. a4 {[%clk 0:04:06.7]} 24... Kf8 {[%clk 0:03:04]} 25. e4 {[%clk
0:04:04.4]} 25... Ne7 {[%clk 0:03:02.4]} 26. Rac1 {[%clk 0:03:58.9]} 26... Rxc1
{[%clk 0:02:55.4]} 27. Rxc1 {[%clk 0:03:58.8]} 27... Nxc6 {[%clk 0:02:44]} 28.
Rxc6 {[%clk 0:03:56.5]} 28... Ke7 {[%clk 0:02:33.1]} 29. Rc7+ {[%clk 0:03:55.1]}
29... Kf6 {[%clk 0:02:31.3]} 30. e5+ {[%clk 0:03:54.6]} 30... Kxe5 {[%clk
0:02:26.9]} 31. Rxf7 {[%clk 0:03:53.2]} 31... a6 {[%clk 0:02:25.6]} 32. Rb7
{[%clk 0:03:51.5]} 32... axb5 {[%clk 0:02:23.5]} 33. axb5 {[%clk 0:03:51.4]}
33... Ra1+ {[%clk 0:02:13.3]} 34. Kg2 {[%clk 0:03:49.9]} 34... Rb1 {[%clk
0:01:54.6]} 35. Rxb6 {[%clk 0:03:49.2]} 35... g6 {[%clk 0:01:44.7]} 36. Rb7
{[%clk 0:03:48.4]} 36... h5 {[%clk 0:01:42.9]} 37. h4 {[%clk 0:03:41.5]} 37...
Kd5 {[%clk 0:01:39.7]} 38. b6 {[%clk 0:03:41]} 38... Kc6 {[%clk 0:01:38.3]} 39.
Rg7 {[%clk 0:03:40.6]} 39... Kxb6 {[%clk 0:01:31.6]} 40. Rxg6 {[%clk 0:03:40.1]}
40... Re1 {[%clk 0:01:23.6]} 41. Rg5 {[%clk 0:03:39]} 41... Kc6 {[%clk
0:01:19.3]} 42. Rxh5 {[%clk 0:03:38.4]} 42... Kd6 {[%clk 0:01:18.4]} 43. Rg5
{[%clk 0:03:37.9]} 43... Ke7 {[%clk 0:01:17]} 44. h5 {[%clk 0:03:37.4]} 44...
Kf6 {[%clk 0:01:16]} 45. Rg6+ {[%clk 0:03:36.6]} 45... Kf7 {[%clk 0:01:14.6]}
46. g4 {[%clk 0:03:35.9]} 46... e5 {[%clk 0:01:12.7]} 47. Ra6 {[%clk 0:03:34.3]}
47... e4 {[%clk 0:01:10.6]} 48. g5 {[%clk 0:03:33.7]} 48... e3 {[%clk
0:01:09.5]} 49. Ra7+ {[%clk 0:03:32]} 49... Kf8 {[%clk 0:01:07.7]} 50. fxe3
{[%clk 0:03:30.8]} 50... Rxe3 {[%clk 0:01:06.7]} 51. Ra5 {[%clk 0:03:26.7]}
51... Re2+ {[%clk 0:01:05.1]} 52. Kg3 {[%clk 0:03:25.6]} 52... Re3+ {[%clk
0:01:04.2]} 53. Kg4 {[%clk 0:03:24.8]} 53... Re1 {[%clk 0:01:02.5]} 54. Ra8+
{[%clk 0:03:22.1]} 54... Kg7 {[%clk 0:01:00]} 55. Ra7+ {[%clk 0:03:21.6]} 55...
Kf8 {[%clk 0:00:58.4]} 56. Kf5 {[%clk 0:03:21.2]} 56... Rf1+ {[%clk 0:00:57.1]}
57. Kg6 {[%clk 0:03:20.2]} 57... Rb1 {[%clk 0:00:55.8]} 58. h6 {[%clk 0:03:19]}
58... Rb6+ {[%clk 0:00:54.6]} 59. Kh5 {[%clk 0:03:18.6]} 59... Rb1 {[%clk
0:00:52.9]} 60. h7 {[%clk 0:03:17.8]} 60... Rh1+ {[%clk 0:00:51.5]} 61. Kg6
{[%clk 0:03:17.5]} 1-0

[Event "Live Chess"]
[Site "Chess.com"]
[Date "2024.06.01"]
[Round "-"]
[White "MaksymYurii"]
[Black "gmnorfolk"]
[Result "0-1"]
[WhiteElo "937"]
[BlackElo "2100"]
[TimeControl "300"]
[EndTime "15:49:40 PDT"]
[Termination "gmnorfolk won by checkmate"]

1. e4 {[%clk 0:04:57.8]} 1... c5 {[%clk 0:04:58.6]} 2. Nf3 {[%clk 0:04:56.8]}
2... d6 {[%clk 0:04:57.2]} 3. Bc4 {[%clk 0:04:55.8]} 3... Nf6 {[%clk 0:04:55.5]}
4. d3 {[%clk 0:04:48.8]} 4... Nc6 {[%clk 0:04:53.6]} 5. O-O {[%clk 0:04:42]}
5... g6 {[%clk 0:04:52]} 6. Bb5 {[%clk 0:04:38.3]} 6... Bg7 {[%clk 0:04:43.7]}
7. e5 {[%clk 0:04:37]} 7... dxe5 {[%clk 0:04:34.5]} 8. Nxe5 {[%clk 0:04:35.3]}
8... Bd7 {[%clk 0:04:33]} 9. Nxd7 {[%clk 0:04:29.4]} 9... Qxd7 {[%clk
0:04:31.6]} 10. Re1 {[%clk 0:04:18.5]} 10... a6 {[%clk 0:04:25.9]} 11. Ba4
{[%clk 0:04:16.3]} 11... b5 {[%clk 0:04:22.8]} 12. Bb3 {[%clk 0:04:13.5]} 12...
O-O {[%clk 0:04:22.7]} 13. Nc3 {[%clk 0:03:53.9]} 13... Nd4 {[%clk 0:04:17.7]}
14. a4 {[%clk 0:03:37]} 14... Nxb3 {[%clk 0:04:08.6]} 15. cxb3 {[%clk
0:03:34.3]} 15... b4 {[%clk 0:04:08.5]} 16. Ne4 {[%clk 0:03:30.1]} 16... Nxe4
{[%clk 0:04:07.5]} 17. dxe4 {[%clk 0:03:29.2]} 17... Qxd1 {[%clk 0:04:01.4]} 18.
Rxd1 {[%clk 0:03:28]} 18... Rfd8 {[%clk 0:04:01.3]} 19. Rxd8+ {[%clk 0:03:25.1]}
19... Rxd8 {[%clk 0:03:59.6]} 20. Be3 {[%clk 0:03:24]} 20... Bxb2 {[%clk
0:03:57.4]} 21. Rb1 {[%clk 0:03:19.9]} 21... Bd4 {[%clk 0:03:55.9]} 22. Bh6
{[%clk 0:03:11.4]} 22... f6 {[%clk 0:03:52.5]} 23. Bf4 {[%clk 0:02:54.8]} 23...
e5 {[%clk 0:03:48.1]} 24. Bg3 {[%clk 0:02:51.8]} 24... Bc3 {[%clk 0:03:41.1]}
25. f3 {[%clk 0:02:42.9]} 25... Rd2 {[%clk 0:03:36.5]} 26. f4 {[%clk 0:02:34.6]}
26... Bd4+ {[%clk 0:03:32]} 27. Kh1 {[%clk 0:02:31.8]} 27... Re2 {[%clk
0:03:28.9]} 28. fxe5 {[%clk 0:02:28.7]} 28... fxe5 {[%clk 0:03:27.2]} 29. Re1
{[%clk 0:02:12.3]} 29... Rxe1+ {[%clk 0:03:23.8]} 30. Bxe1 {[%clk 0:02:10.7]}
30... c4 {[%clk 0:03:23.3]} 31. bxc4 {[%clk 0:02:09]} 31... b3 {[%clk 0:03:20]}
32. c5 {[%clk 0:01:55.7]} 32... b2 {[%clk 0:03:17.2]} 33. h3 {[%clk 0:01:48.9]}
33... b1=Q {[%clk 0:03:17.1]} 34. c6 {[%clk 0:01:46.4]} 34... Qxe1+ {[%clk
0:03:16.6]} 35. Kh2 {[%clk 0:01:45.3]} 35... Bg1+ {[%clk 0:03:15.1]} 36. Kh1
{[%clk 0:01:42.6]} 36... Bf2+ {[%clk 0:03:15]} 37. Kh2 {[%clk 0:01:41.6]} 37...
Bg3# {[%clk 0:03:14.5]} 0-1

[Event "Live Chess"]
[Site "Chess.com"]
[Date "2024.06.01"]
[Round "-"]
[White "DoctorMantisTobogganMD"]
[Black "booktrunk"]
[Result "1-0"]
[WhiteElo "2177"]
[BlackElo "1471"]
[TimeControl "300"]
[EndTime "15:49:46 PDT"]
[Termination "DoctorMantisTobogganMD won by resignation"]

1. e4 {[%clk 0:04:58.8]} 1... b6 {[%clk 0:04:57.1]} 2. Nc3 {[%clk 0:04:57]} 2...
Bb7 {[%clk 0:04:54.4]} 3. Bc4 {[%clk 0:04:56.3]} 3... e6 {[%clk 0:04:43.1]} 4.
Bb3 {[%clk 0:04:53.7]} 4... h6 {[%clk 0:04:40.5]} 5. d3 {[%clk 0:04:52.5]} 5...
c5 {[%clk 0:04:34.9]} 6. f4 {[%clk 0:04:51.2]} 6... Nf6 {[%clk 0:04:33.7]} 7.
Nf3 {[%clk 0:04:50]} 7... d6 {[%clk 0:04:29.8]} 8. O-O {[%clk 0:04:48.8]} 8...
Nbd7 {[%clk 0:04:26]} 9. f5 {[%clk 0:04:47.6]} 9... e5 {[%clk 0:04:23.1]} 10.
Qe1 {[%clk 0:04:41.6]} 10... Qe7 {[%clk 0:04:19.3]} 11. a4 {[%clk 0:04:38.8]}
11... a5 {[%clk 0:04:16.9]} 12. Nb5 {[%clk 0:04:37.1]} 12... Nb8 {[%clk
0:04:03.4]} 13. h3 {[%clk 0:04:28.5]} 13... Qd7 {[%clk 0:04:02.2]} 14. Be3
{[%clk 0:04:21]} 14... Be7 {[%clk 0:03:49.9]} 15. Bf2 {[%clk 0:04:19.4]} 15...
O-O {[%clk 0:03:47.8]} 16. Bh4 {[%clk 0:04:18.1]} 16... Nh7 {[%clk 0:03:45.9]}
17. Bxe7 {[%clk 0:04:16.5]} 17... Qxe7 {[%clk 0:03:43.1]} 18. g4 {[%clk
0:04:14.6]} 18... Ba6 {[%clk 0:03:38.9]} 19. Bd5 {[%clk 0:04:11.7]} 19... Bb7
{[%clk 0:03:34.3]} 20. Bxb7 {[%clk 0:04:09.1]} 20... Qxb7 {[%clk 0:03:31.1]} 21.
c4 {[%clk 0:04:09]} 21... Qd7 {[%clk 0:03:27.7]} 22. Qe3 {[%clk 0:04:06.9]}
22... Nc6 {[%clk 0:03:26]} 23. h4 {[%clk 0:04:04.3]} 23... Nd4 {[%clk
0:03:24.2]} 24. Rf2 {[%clk 0:03:59.9]} 24... Nxf3+ {[%clk 0:03:21.3]} 25. Rxf3
{[%clk 0:03:58]} 25... f6 {[%clk 0:03:19]} 26. Rg3 {[%clk 0:03:56.4]} 26... Rf7
{[%clk 0:03:17.7]} 27. b3 {[%clk 0:03:54.7]} 27... Kf8 {[%clk 0:03:13.3]} 28.
Ra2 {[%clk 0:03:53.6]} 28... Ke7 {[%clk 0:03:11.4]} 29. Rag2 {[%clk 0:03:52.6]}
29... Rg8 {[%clk 0:03:08.2]} 30. Nc3 {[%clk 0:03:51.6]} 30... Kd8 {[%clk
0:03:05.4]} 31. Nd5 {[%clk 0:03:50.6]} 31... Qb7 {[%clk 0:03:00.3]} 32. Kf1
{[%clk 0:03:43.7]} 32... Nf8 {[%clk 0:02:56.7]} 33. g5 {[%clk 0:03:41.5]} 33...
hxg5 {[%clk 0:02:54.9]} 34. hxg5 {[%clk 0:03:41.4]} 34... fxg5 {[%clk
0:02:52.3]} 35. Qxg5+ {[%clk 0:03:38.6]} 35... Ke8 {[%clk 0:02:46.9]} 36. Qh5
{[%clk 0:03:35.9]} 36... Kd8 {[%clk 0:02:31.2]} 37. Ke2 {[%clk 0:03:29.4]} 37...
Kc8 {[%clk 0:02:29.1]} 38. Nxb6+ {[%clk 0:03:22.3]} 38... Kb8 {[%clk 0:02:27.2]}
39. Nd5 {[%clk 0:03:19.4]} 39... g6 {[%clk 0:02:06.6]} 40. fxg6 {[%clk
0:03:16.3]} 40... Rfg7 {[%clk 0:02:00.5]} 41. Qh2 {[%clk 0:03:00.4]} 41... Qxb3
{[%clk 0:01:58.7]} 42. Ke3 {[%clk 0:02:59.3]} 42... Qd1 {[%clk 0:01:54.2]} 43.
Rb2+ {[%clk 0:02:56]} 43... Kc8 {[%clk 0:01:51.9]} 44. Rg1 {[%clk 0:02:50.5]}
44... Qxa4 {[%clk 0:01:45.3]} 45. Qh3+ {[%clk 0:02:44.7]} 45... Nd7 {[%clk
0:01:33.8]} 46. Nb6+ {[%clk 0:02:43.1]} 1-0